bitfinex/quotes_ETHUSD_20250129
["timestamp","ask_amount","ask_price","bid_price","bid_amount"]
[1738159805280,61.0,3101.6,3101.3,0.317]
[1738159805906,61.0,3101.6,3101.4,0.07321123]
[1738159806434,3.22435,3101.4,3101.3,0.8745]
[1738159807398,3.2243,3101.5,3101.4,0.5575]
[1738159808126,61.0,3101.6,3101.4,0.5575]
[1738159808627,64.22416,3101.6,3101.4,0.5575]
[1738159808788,64.22416,3101.6,3101.4,0.84495]
[1738159808991,61.0,3101.6,3101.4,0.84495]
[1738159809994,61.0,3101.6,3101.4,4.0692]
[1738159810531,61.0,3101.6,3101.5,1.45291308]
[1738159811303,60.25128779,3101.6,3101.5,4.63636334]
[1738159811489,59.00383628,3101.6,3101.5,8.47674186]
[1738159811692,58.22417909,3101.6,3101.5,11.45241852]
[1738159812316,57.18463616,3101.6,3101.5,11.45241852]
[1738159814848,51.25403229,3101.6,3101.5,11.45241852]
[1738159815048,51.25403229,3101.6,3101.5,19.80281324]
[1738159815049,30.87922695,3101.6,3101.5,19.80281324]
[1738159815541,29.98002109,3101.6,3101.5,19.80281324]
[1738159815741,20.46431099,3101.6,3101.5,19.80281324]
[1738159816050,20.44000377,3101.6,3101.5,20.20253362]
[1738159816349,0.14000377,3101.6,3101.5,20.84039794]
[1738159816717,3.77e-06,3101.6,3101.5,20.84039794]
[1738159816919,3.77e-06,3101.6,3101.5,20.44067756]
[1738159817248,3.77e-06,3101.6,3101.5,18.39077651]
[1738159817472,3.77e-06,3101.6,3101.5,14.75291219]
[1738159817626,4.01209,3102.3,3101.9,2.0]
[1738159817832,4.01209,3102.3,3102.0,0.0075]
[1738159818032,4.01209,3102.3,3102.0,0.6289398]
[1738159818233,0.7886,3102.3,3102.0,0.6289398]
[1738159818563,3.22305,3102.7,3102.0,0.6289398]
[1738159818759,3.22326,3102.5,3102.0,0.6289398]
[1738159819654,0.8083,3102.6,3102.0,0.6289398]
[1738159819824,3.22326,3102.5,3102.0,0.6289398]
[1738159820025,3.22295,3102.8,3102.3,0.0075]
[1738159820250,3.22295,3102.8,3102.5,0.0075]
[1738159820454,6.44591,3102.8,3102.5,0.0075]
[1738159820668,3.22295,3102.8,3102.6,0.07040864]
[1738159821197,3.22299,3102.7,3102.6,0.07040864]
[1738159821963,3.22295,3102.8,3102.6,0.07040864]
[1738159822167,3.22295,3102.8,3102.7,0.317]
[1738159822367,0.7634,3102.9,3102.7,0.38735564]
[1738159822575,7.20747,3103.2,3102.8,0.55]
[1738159822748,3.2226,3103.1,3102.9,0.07025956]
[1738159823338,3.98489,3103.2,3103.0,0.5575]
[1738159823577,3.22268,3103.0,3102.9,0.07025956]
[1738159823875,3.22285,3102.9,3102.7,0.317]
[1738159824066,3.22268,3103.0,3102.8,0.5575]
[1738159824467,3.22268,3103.0,3102.7,0.0075]
[1738159824643,3.22268,3103.0,3102.9,0.867]
[1738159825336,3.22268,3103.0,3102.9,0.8745]
[1738159826380,3.22258,3103.1,3102.9,0.8745]
[1738159826588,3.22258,3103.1,3102.9,0.5575]
[1738159826770,3.22258,3103.1,3103.0,0.317]
[1738159827086,3.22221,3103.5,3103.1,0.5575]
[1738159827475,4.04053,3103.6,3103.1,0.5575]
[1738159827645,3.22219,3103.5,3103.1,0.5575]
[1738159829390,3.22255,3103.2,3103.0,3.0]
[1738159829593,4.02685,3103.2,3103.1,0.317]
[1738159829799,0.8043,3102.6,3102.4,2.0]
[1738159829954,3.2232,3102.5,3102.4,2.0]
[1738159830148,3.2232,3102.5,3102.4,2.317]
[1738159830751,0.8043,3102.6,3102.4,2.3245]
[1738159831114,4.02742,3102.6,3102.4,2.3245]
[1738159831254,4.02742,3102.6,3102.5,0.317]
[1738159831853,4.02742,3102.6,3102.5,0.867]
[1738159832498,0.756,3103.0,3102.6,0.5575]
[1738159832677,3.22274,3103.0,3102.6,0.5575]
[1738159833014,3.22274,3103.0,3102.6,0.565]
[1738159833167,3.22279,3102.9,3102.6,0.565]
[1738159833362,3.22279,3102.9,3102.8,0.5575]
[1738159833561,3.22279,3102.9,3102.8,0.65402171]
[1738159834169,3.22279,3102.9,3102.8,0.09652171]
[1738159834370,3.22298,3102.8,3102.6,0.5575]
[1738159834566,3.22298,3102.8,3102.7,0.09687071]
[1738159834799,3.22298,3102.8,3102.7,0.65437071]
[1738159835014,3.22298,3102.8,3102.7,0.64687071]
[1738159837209,3.22298,3102.8,3102.7,0.09687071]
[1738159837552,4.04108,3102.8,3102.7,0.41387071]
[1738159837753,4.04108,3102.8,3102.7,0.317]
[1738159837932,4.04108,3102.8,3102.7,0.41381141]
[1738159838417,4.04072,3103.1,3102.7,0.41381141]
[1738159838601,0.8181,3103.1,3102.8,0.0075]
[1738159838812,0.8181,3103.7,3103.0,0.0075]
[1738159839001,3.22257,3103.2,3103.0,0.0075]
[1738159839314,3.22257,3103.2,3102.9,0.64670354]
[1738159839315,4.04067,3103.2,3102.9,0.55]
[1738159839706,3.22266,3103.1,3103.0,0.64664961]
[1738159841743,3.22266,3103.1,3103.0,0.41264961]
[1738159842306,3.22257,3103.2,3103.0,0.41264961]
[1738159842736,3.22258,3103.1,3103.0,0.41264961]
[1738159843138,3.867095,3103.1,3103.0,0.41264961]
[1738159843349,3.22258,3103.1,3103.0,0.41264961]
[1738159844842,3.26286385,3103.1,3103.0,0.41264961]
[1738159845003,4.05318,3103.1,3103.0,0.41264961]
[1738159845203,4.093465,3103.1,3103.0,0.09664961]
[1738159845444,4.05318,3103.1,3103.0,0.09664961]
[1738159845817,4.05318,3103.1,3102.7,0.316]
[1738159846006,3.22289,3102.8,3102.7,0.316]
[1738159847311,3.867458,3102.8,3102.7,0.316]
[1738159847510,3.867458,3102.8,3102.3,2.0]
[1738159847511,3.22331,3102.4,3102.3,2.0]
[1738159847738,3.22331,3102.4,3102.3,2.3235]
[1738159848074,3.22331,3102.4,3102.3,2.8735]
[1738159848456,3.22331,3102.4,3102.3,2.97077423]
[1738159848654,3.22331,3102.4,3102.3,0.41327423]
[1738159848870,3.98335288,3102.4,3102.3,0.09727423]
[1738159849063,3.22341,3102.3,3102.2,0.316]
[1738159849242,3.22378,3102.0,3101.9,0.0075]
[1738159849444,3.22378,3102.0,3101.9,0.3235]
[1738159849879,3.22378,3102.0,3101.9,0.8735]
[1738159850049,3.22336,3102.4,3102.1,0.0075]
[1738159850255,3.22347,3102.3,3102.1,0.0075]
[1738159850582,3.22351,3102.3,3102.0,0.5575]
[1738159851180,3.22362,3102.1,3102.0,0.5575]
[1738159851995,3.22414,3101.6,3101.5,2.552]
[1738159852144,3.22414,3101.6,3101.5,2.868]
[1738159852346,3.22403,3101.7,3101.5,2.868]
[1738159852541,3.22403,3101.7,3101.6,0.0075]
[1738159853087,3.22403,3101.7,3101.6,35.0075]
[1738159854405,3.2643313,3101.7,3101.6,35.0]
[1738159854613,4.72685743,3101.7,3101.6,35.0]
[1738159855262,4.68655613,3101.7,3101.6,35.0]
[1738159856305,4.03773,3101.7,3101.6,35.0]
[1738159858073,3.22488,3100.9,3100.7,0.0075]
[1738159858274,0.798,3101.2,3100.9,0.0075]
[1738159858275,3.22467,3101.1,3100.9,0.0075]
[1738159858612,3.22467,3101.1,3101.0,35.0075]
[1738159858808,3.22467,3101.1,3101.0,35.3235]
[1738159859163,3.22458,3101.2,3101.0,35.0075]
[1738159859506,3.22458,3101.2,3101.1,0.316]
[1738159860506,3.90979712,3101.2,3101.1,35.0]
[1738159860706,4.05688,3101.2,3101.1,35.0]
[1738159861464,3.22458,3101.2,3101.1,35.0]
[1738159863501,3.22458,3101.2,3101.1,35.0998849]
[1738159863705,3.87660773,3101.6,3101.2,0.0075]
[1738159863916,3.22373,3102.0,3101.5,0.0075]
[1738159863917,3.22396,3101.8,3101.5,0.0075]
[1738159864201,3.22373,3102.0,3101.6,0.0075]
[1738159864408,3.22386,3101.9,3101.7,35.5575]
[1738159864594,3.22386,3101.9,3101.8,0.10676956]
[1738159864901,3.22373,3102.0,3101.9,0.0075]
[1738159865101,3.22354,3102.2,3101.9,0.0075]
[1738159865288,3.22363,3102.1,3101.9,0.1067057]
[1738159865600,0.8002,3102.5,3101.9,0.1067057]
[1738159865601,3.22334,3102.4,3102.1,0.0075]
[1738159865788,3.22351,3102.2,3102.1,0.0075]
[1738159866763,3.0,3103.2,3102.1,0.0075]
[1738159866764,0.8115,3102.8,3102.1,0.565]
[1738159867006,3.2231,3102.6,3102.1,3.7886]
[1738159867306,0.8115,3103.0,3102.3,0.0075]
[1738159867506,3.2232,3102.6,3102.5,0.0075]
[1738159867894,3.2232,3102.6,3102.0,0.316]
[1738159867895,3.22362,3102.1,3102.0,0.316]
[1738159868095,3.26391594,3102.1,3102.0,35.316]
[1738159868298,3.22362,3102.1,3102.0,35.316]
[1738159868464,3.22362,3102.1,3102.0,35.3235]
[1738159868670,3.22347,3102.3,3102.1,0.0075]
[1738159869909,3.2234,3102.4,3102.1,0.5575]
[1738159870126,0.7891,3102.5,3102.1,0.5575]
[1738159870127,6.44632,3102.6,3102.2,0.0075]
[1738159870323,3.22315,3102.6,3102.2,0.0075]
[1738159870534,3.22294,3102.8,3102.4,0.0075]
[1738159870745,0.7955,3103.1,3102.6,0.565]
[1738159870890,3.22254,3103.2,3102.6,0.565]
[1738159871440,3.22254,3103.2,3102.7,0.015]
[1738159871589,3.22231,3103.4,3103.1,0.0075]
[1738159872186,3.22231,3103.4,3103.3,0.0075]
[1738159872385,3.22235,3103.4,3103.1,0.0075]
[1738159872630,3.22211,3103.6,3103.1,0.0075]
[1738159872842,3.22211,3103.6,3103.4,0.5575]
[1738159872988,3.22211,3103.6,3103.5,0.3235]
[1738159873191,3.22191,3103.8,3103.6,0.0075]
[1738159873388,3.22196,3103.7,3103.6,0.0075]
[1738159873588,3.22196,3103.7,3103.6,35.0075]
[1738159874312,3.22196,3103.7,3103.6,35.5575]
[1738159874811,3.22177,3103.9,3103.8,0.0075]
[1738159878526,3.22177,3103.9,3103.8,35.65056176]
[1738159879140,4.03357,3103.9,3103.8,0.09306176]
[1738159879318,4.677906,3103.9,3103.8,0.09306176]
[1738159879654,3.22206,3103.6,3103.5,0.316]
[1738159879943,3.22206,3103.6,3103.4,0.316]
[1738159880157,3.22227,3103.5,3103.4,0.5575]
[1738159880306,3.22227,3103.5,3103.4,0.8735]
[1738159880702,3.26254779,3103.5,3103.4,35.316]
[1738159880934,3.22227,3103.5,3103.4,35.316]
[1738159882009,3.22305,3102.7,3102.5,0.8267]
[1738159882206,3.2232,3102.5,3102.2,3.3797]
[1738159882466,3.22331,3102.4,3102.3,0.316]
[1738159882607,3.22331,3102.4,3102.2,3.3797]
[1738159882608,3.22341,3102.3,3102.2,3.3797]
[1738159882812,3.22341,3102.3,3102.2,3.6957]
[1738159883009,3.22341,3102.3,3102.2,38.7107]
[1738159883542,3.22341,3102.3,3102.2,37.5605]
[1738159883707,3.22341,3102.3,3102.2,37.8765]
[1738159884877,3.22341,3102.3,3102.2,38.4265]
[1738159885655,3.22341,3102.3,3102.2,38.1105]
[1738159885858,3.22341,3102.3,3102.2,37.553]
[1738159886025,4.08220277,3102.3,3102.2,37.869]
[1738159886423,6.77060678,3102.3,3101.2,0.316]
[1738159886661,3.22445,3101.3,3101.2,0.316]
[1738159886881,3.22437,3101.4,3101.3,0.0075]
[1738159887362,8.59351,3102.2,3101.3,0.0075]
[1738159887363,3.22417,3101.6,3101.3,0.565]
[1738159887532,3.22417,3101.6,3101.5,0.5575]
[1738159887730,3.22417,3101.6,3101.4,0.5575]
[1738159888136,3.22402,3101.8,3101.6,0.5575]
[1738159888467,3.22403,3101.7,3101.6,0.5575]
[1738159888656,3.22403,3101.7,3101.6,0.0075]
[1738159888828,3.2239,3101.9,3101.6,0.0075]
[1738159889079,3.22394,3101.8,3101.7,35.5575]
[1738159889237,3.22376,3102.0,3101.8,0.5575]
[1738159889578,3.22376,3102.0,3101.8,1.3671]
[1738159889721,3.22355,3102.2,3101.8,1.3671]
[1738159889922,3.22332,3102.4,3102.2,0.0075]
[1738159891256,3.22313,3102.6,3102.2,0.0075]
[1738159891565,3.22333,3102.4,3102.2,0.0075]
[1738159891758,3.22333,3102.4,3101.8,0.8096]
[1738159891961,0.7683,3102.9,3101.8,0.8096]
[1738159891962,3.22383,3101.9,3101.8,0.8096]
[1738159892130,3.22383,3101.9,3101.8,1.6906]
[1738159892531,3.22383,3101.9,3101.8,1.3671]
[1738159892731,3.22383,3101.9,3101.8,0.8735]
[1738159892947,3.22383,3101.9,3101.8,0.316]
[1738159893884,3.22383,3101.9,3101.8,0.41081362]
[1738159895943,3.22383,3101.9,3101.8,0.316]
[1738159896143,3.22383,3101.9,3101.8,0.41109975]
[1738159896661,3.22383,3101.9,3101.8,0.09509975]
[1738159896868,3.22383,3101.9,3101.8,0.41109975]
[1738159897068,3.22383,3101.9,3101.8,0.316]
[1738159897269,3.22383,3101.9,3101.8,0.41108988]
[1738159897614,3.22383,3101.9,3101.8,0.96858988]
[1738159897966,3.22371,3102.1,3101.8,0.97608988]
[1738159898317,5.37,3102.2,3102.0,0.0075]
[1738159898480,3.22324,3102.5,3102.4,2.5575]
[1738159898905,3.22324,3102.5,3102.4,2.65219211]
[1738159901724,3.2231,3102.7,3102.5,0.5575]
[1738159901878,3.22308,3102.7,3102.5,0.5575]
[1738159902079,3.2231,3102.6,3102.5,0.5575]
[1738159902781,3.2231,3102.6,3102.5,0.0075]
[1738159903105,3.22351,3102.2,3102.1,2.565]
[1738159903265,3.22351,3102.2,3102.1,2.881]
[1738159904441,3.22351,3102.2,3102.1,2.5575]
[1738159904641,3.22351,3102.2,3102.1,2.8725]
[1738159907556,3.26380493,3102.2,3102.1,0.315]
[1738159907754,4.05710493,3102.2,3101.7,0.0075]
[1738159907956,3.22393,3101.8,3101.7,0.0075]
[1738159908164,3.22393,3101.8,3101.7,0.3225]
[1738159908316,3.22393,3101.8,3101.7,0.41730841]
[1738159908523,3.22393,3101.8,3101.7,0.96730841]
[1738159910374,4.69140565,3101.8,3101.7,0.09480841]
[1738159910667,1.46747565,3101.8,3101.2,0.5575]
[1738159910969,3.22435,3101.4,3101.3,0.09502434]
[1738159911321,3.22455,3101.2,3101.1,0.315]
[1738159911728,3.22455,3101.2,3101.1,0.41013232]
[1738159913115,4.70235866,3101.2,3101.1,0.09513232]
[1738159913561,3.22497,3100.8,3100.7,0.5575]
[1738159914067,3.22486,3101.0,3100.7,0.6534552]
[1738159914068,3.22488,3100.9,3100.7,0.6534552]
[1738159914270,3.22492,3100.9,3100.7,0.6534552]
[1738159914577,3.22492,3100.9,3100.8,0.3225]
[1738159914724,3.22486,3101.0,3100.8,0.0075]
[1738159914921,3.22486,3101.0,3100.8,0.41840119]
[1738159915222,3.22487,3100.9,3100.8,0.3225]
[1738159915961,3.22497,3100.8,3100.7,0.55]
[1738159916125,3.22497,3100.8,3100.7,0.5575]
[1738159918239,3.26528329,3100.8,3100.7,0.5575]
[1738159920041,3.26528334,3100.8,3100.7,0.5575]
[1738159920441,3.22497,3100.8,3100.7,0.5575]
[1738159921168,6.44983,3100.9,3100.7,0.5575]
[1738159921468,3.22487,3100.9,3100.7,0.5575]
[1738159921767,3.22497,3100.8,3100.7,0.5575]
[1738159922272,3.22487,3100.9,3100.7,0.5575]
[1738159922475,3.22487,3100.9,3100.8,0.0075]
[1738159923052,3.87054347,3101.0,3100.8,0.0075]
[1738159923251,3.87054347,3101.0,3100.9,0.65439364]
[1738159923988,3.9108538,3101.0,3100.9,0.09689364]
[1738159924350,3.22487,3100.9,3100.8,0.8725]
[1738159924586,3.9108538,3101.0,3100.8,0.8725]
[1738159924587,3.87054347,3101.0,3100.8,0.8725]
[1738159924787,3.87054347,3101.0,3100.8,0.5575]
[1738159925098,7.09540347,3101.0,3100.9,0.315]
[1738159925613,3.87054347,3101.0,3100.9,0.315]
[1738159925986,3.22461,3101.2,3100.9,1.6672]
[1738159926289,3.22446,3101.3,3101.0,0.5575]
[1738159926465,3.22433,3101.5,3101.2,0.5575]
[1738159927195,3.87625619,3101.7,3101.2,0.5575]
[1738159927483,3.22415,3101.6,3101.2,0.5575]
[1738159928297,0.65216619,3101.7,3101.3,0.0075]
[1738159928506,3.22399,3101.8,3101.3,0.0075]
[1738159928665,3.22399,3101.8,3101.5,0.5575]
[1738159929370,3.22405,3101.7,3101.5,0.5575]
[1738159929770,3.22396,3101.8,3101.5,2.5575]
[1738159930400,3.22378,3102.0,3101.6,0.0075]
[1738159930959,3.22364,3102.1,3101.6,0.0075]
[1738159931210,3.22372,3102.0,3101.6,0.0075]
[1738159932085,3.22383,3101.9,3101.6,0.0075]
[1738159933153,3.22367,3102.1,3101.6,0.0075]
[1738159933558,3.22367,3102.1,3101.7,0.5575]
[1738159933953,3.22373,3102.0,3101.7,0.5575]
[1738159934583,3.22393,3101.8,3101.7,0.5575]
[1738159934775,3.26423138,3101.8,3101.7,0.3225]
[1738159935770,3.22393,3101.8,3101.7,0.3225]
[1738159936281,3.26423103,3101.8,3101.7,0.3225]
[1738159936793,4.01453,3101.9,3101.7,0.3225]
[1738159936989,3.22372,3102.0,3101.9,0.0075]
[1738159938392,3.22362,3102.1,3101.9,0.10281716]
[1738159938688,4.00603,3102.2,3101.9,0.10281716]
[1738159938689,6.44714,3102.2,3101.9,0.10281716]
[1738159938895,3.22365,3102.1,3101.9,0.10281716]
[1738159939658,3.22365,3102.1,3102.0,0.5575]
[1738159939868,3.22365,3102.1,3102.0,0.6527632]
[1738159940268,4.76221866,3102.1,3102.0,0.0952632]
[1738159940570,3.22403,3101.7,3101.6,0.05895574]
[1738159940769,3.26433168,3101.7,3101.6,0.93145574]
[1738159940989,3.22403,3101.7,3101.6,1.02693482]
[1738159943605,3.22393,3101.8,3101.7,0.55]
[1738159943974,3.22393,3101.8,3101.7,0.64550407]
[1738159946115,4.01032,3102.1,3101.7,0.64550407]
[1738159946284,0.62926392,3102.3,3101.9,0.55]
[1738159946487,3.22357,3102.2,3102.0,0.09538658]
[1738159946694,3.22362,3102.1,3102.0,0.64538658]
[1738159948301,3.22354,3102.2,3102.0,0.64538658]
[1738159948816,6.44713,3102.2,3102.0,0.64538658]
[1738159949259,3.22362,3102.1,3102.0,0.64538658]
[1738159950326,3.97156014,3102.1,3102.0,0.09538658]
[1738159950612,4.69176239,3102.1,3102.0,0.09538658]
[1738159950816,3.22354,3102.2,3101.9,0.55]
[1738159950988,3.22354,3102.2,3102.0,0.09530269]
[1738159951182,0.8191,3102.7,3102.3,0.0075]
[1738159951392,3.22294,3102.8,3102.3,0.0075]
[1738159951592,3.22294,3102.8,3102.5,0.55]
[1738159951768,3.223,3102.7,3102.5,0.55]
[1738159951972,4.01849,3102.9,3102.7,0.55]
[1738159952194,6.44531,3103.1,3102.8,0.0075]
[1738159952395,3.22261,3103.1,3102.9,0.55]
[1738159952615,3.22268,3103.0,3102.9,0.55]
[1738159952913,3.22289,3102.8,3102.7,0.5575]
[1738159953140,3.22289,3102.8,3102.7,0.0075]
[1738159953294,3.22289,3102.8,3102.7,0.10209942]
[1738159954040,3.26317687,3102.8,3102.7,0.40859942]
[1738159954276,3.99134756,3102.8,3102.7,0.40859942]
[1738159954589,3.22289,3102.8,3102.7,0.40859942]
[1738159954934,3.22289,3102.8,3102.7,0.96609942]
[1738159956190,0.7957,3102.9,3102.7,0.96609942]
[1738159956391,3.22265,3103.1,3102.8,0.55]
[1738159956842,3.22265,3103.1,3102.9,0.09403765]
[1738159958102,3.22265,3103.1,3103.0,0.55]
[1738159958409,3.22265,3103.1,3103.0,0.64398372]
[1738159958836,3.2222,3103.5,3103.1,2.0075]
[1738159959133,3.26257046,3103.4,3103.3,0.0075]
[1738159959520,3.26257046,3103.4,3103.3,0.65120358]
[1738159959721,3.26257046,3103.4,3103.3,0.5575]
[1738159959722,3.22229,3103.4,3103.3,0.5575]
[1738159959922,3.88150168,3103.5,3103.3,0.65120358]
[1738159960239,3.22227,3103.4,3103.3,0.65120358]
[1738159961713,3.88150168,3103.5,3103.3,0.65120358]
[1738159962044,3.2222,3103.5,3103.4,0.55]
[1738159962343,3.222,3103.7,3103.5,0.0075]
[1738159962653,3.222,3103.7,3103.6,0.5575]
[1738159962942,3.222,3103.7,3103.6,0.65073615]
[1738159963523,3.86646182,3103.8,3103.6,0.65073615]
[1738159964563,0.64460182,3103.8,3103.6,0.65073615]
[1738159964767,3.22196,3103.7,3103.6,0.65073615]
[1738159965273,3.22178,3103.9,3103.7,0.0075]
[1738159965779,3.22178,3103.9,3103.8,0.65062834]
[1738159966288,3.8644067,3103.9,3103.8,0.09312834]
[1738159966493,3.90468281,3103.9,3103.8,0.09312834]
[1738159966646,3.22196,3103.7,3103.6,0.5575]
[1738159966981,3.22196,3103.7,3103.6,0.96473615]
[1738159967535,3.26223605,3103.7,3103.6,0.65073615]
[1738159967741,3.26223605,3103.7,3103.6,0.96473615]
[1738159968897,3.20079371,3103.7,3103.6,0.96473615]
[1738159969071,3.16051766,3103.7,3103.6,0.96473615]
[1738159970884,3.16051766,3103.7,3103.6,0.09323615]
[1738159971083,3.9465057,3103.7,3103.5,0.314]
[1738159971288,3.26234014,3103.6,3103.5,0.55]
[1738159971468,3.26234014,3103.6,3103.5,0.864]
[1738159971687,9.43934014,3103.6,3103.5,0.314]
[1738159971983,6.177,3103.6,3103.2,2.0]
[1738159972191,3.2227,3103.0,3102.8,0.0075]
[1738159972504,3.2227,3103.0,3102.5,3.22314]
[1738159972505,3.22294,3102.8,3102.5,2.0]
[1738159972667,3.22294,3102.8,3102.7,0.5575]
[1738159972870,3.22294,3102.8,3102.7,0.8715]
[1738159973287,3.26322836,3102.8,3102.7,0.3215]
[1738159973676,3.26322836,3102.8,3102.7,0.314]
[1738159974103,3.22294,3102.8,3102.7,0.314]
[1738159974575,3.26323,3102.8,3102.7,0.314]
[1738159975101,3.22294,3102.8,3102.7,0.314]
[1738159975301,3.22294,3102.8,3102.3,0.5575]
[1738159975474,6.4459,3102.8,3102.7,0.314]
[1738159976905,3.22312,3102.6,3102.3,0.5575]
[1738159977077,3.22326,3102.5,3102.4,0.314]
[1738159981304,3.22331,3102.4,3102.3,0.5575]
[1738159981506,3.2636041,3102.4,3102.3,0.8705]
[1738159982405,0.040294,3102.4,3102.3,0.8705]
[1738159982571,3.97676,3102.5,3102.3,0.8705]
[1738159983017,0.04029391,3102.6,3102.3,0.8705]
[1738159983232,8.59301,3102.7,3102.3,0.8705]
[1738159983436,5.37,3102.7,3102.5,0.5575]
[1738159983595,5.37,3102.7,3102.6,3.7806]
[1738159983939,5.37,3102.7,3102.6,38.87479946]
[1738159984082,5.37,3102.7,3102.6,38.88229946]
[1738159984284,6.44447,3103.5,3103.1,0.0075]
[1738159984523,3.2222,3103.5,3103.2,0.09377229]
[1738159984720,3.26248242,3103.5,3103.1,0.5575]
[1738159984937,3.26248242,3103.5,3103.2,0.09377229]
[1738159985251,4.03377,3103.3,3103.2,0.09377229]
[1738159985533,3.22262,3103.1,3103.0,0.313]
[1738159987736,3.26290625,3103.1,3103.0,0.313]
[1738159988592,3.22299,3102.7,3102.6,0.05893674]
[1738159988935,3.22299,3102.7,3102.6,0.92193674]
[1738159989759,3.22299,3102.7,3102.4,0.313]
[1738159989760,4.64800107,3102.7,3102.4,0.313]
[1738159990046,3.2232,3102.5,3102.4,0.313]
[1738159991728,3.26349393,3102.5,3102.4,0.313]
[1738159992725,3.2232,3102.5,3102.4,0.313]
[1738159993092,0.7764,3102.7,3102.4,0.313]
[1738159993403,3.22295,3102.8,3102.5,0.55]
[1738159993902,4.05441,3103.0,3102.5,0.55]
[1738159994091,3.22279,3102.9,3102.5,1.3144]
[1738159994408,0.67209262,3102.9,3102.5,1.3144]
[1738159994617,3.2229,3102.8,3102.5,1.3144]
[1738159994815,0.63180223,3102.9,3102.5,1.3144]
[1738159994986,3.85459223,3102.9,3102.5,1.3144]
[1738159995527,3.22279,3102.9,3102.5,1.3144]
[1738159995827,3.22271,3103.0,3102.8,0.0075]
[1738159996215,3.22264,3103.1,3102.8,0.0075]
[1738159997293,6.0027049,3103.2,3102.8,0.0075]
[1738159997521,9.2251849,3103.2,3102.8,0.0075]
[1738159997919,6.0027049,3103.2,3102.9,0.55]
[1738159998125,9.2251849,3103.2,3103.0,0.0075]
[1738159998828,9.2251849,3103.2,3103.1,0.65122266]
[1738159999032,5.37,3103.2,3103.1,1.45702266]
[1738159999443,5.37,3103.2,3103.1,0.65122266]
[1738159999757,3.22238,3103.3,3103.1,0.65122266]
[1738160000295,6.44482,3103.3,3103.1,0.65122266]
[1738160000594,3.86137252,3103.5,3103.1,0.65122266]
[1738160000915,3.22222,3103.5,3103.2,1.3097]
[1738160001438,5.37,3103.6,3103.4,0.5575]
[1738160001610,5.37,3103.6,3103.4,3.77975]
[1738160001857,5.37,3103.6,3103.5,0.65090344]
[1738160002231,5.37,3103.6,3103.5,2.65090344]
[1738160005520,3.85319715,3103.8,3103.5,2.65090344]
[1738160005734,3.22196,3103.7,3103.6,0.5575]
[1738160006103,3.22196,3103.7,3103.6,0.650746]
[1738160007040,0.67156344,3103.8,3103.6,0.650746]
[1738160007225,3.89342344,3103.8,3103.6,0.650746]
[1738160008030,3.89342344,3103.8,3103.6,0.955246]
[1738160008031,4.04376,3103.7,3103.6,0.955246]
[1738160009404,5.37,3104.1,3103.7,0.0075]
[1738160009405,0.8064,3104.0,3103.7,0.0075]
[1738160009605,3.26205587,3103.9,3103.7,0.0075]
[1738160009826,3.22185,3103.8,3103.7,0.0075]
[1738160010352,3.26212592,3103.8,3103.7,0.0075]
[1738160010638,3.26212592,3103.8,3103.5,0.7935]
[1738160010639,3.26212592,3103.8,3103.5,0.5575]
[1738160010811,3.22206,3103.6,3103.5,0.5575]
[1738160011012,1.44439409,3104.0,3103.5,0.8695]
[1738160011238,3.22189,3103.8,3103.5,0.8695]
[1738160011741,3.22197,3103.7,3103.5,0.8695]
[1738160012350,3.22189,3103.8,3103.5,0.8695]
[1738160012642,6.44383,3103.8,3103.5,0.8695]
[1738160013144,3.85971409,3104.0,3103.7,0.5575]
[1738160013352,3.26203463,3103.9,3103.7,0.5575]
[1738160013561,3.26203463,3103.9,3103.8,0.65014512]
[1738160013706,3.22176,3103.9,3103.8,0.65014512]
[1738160016249,3.26203447,3103.9,3103.8,0.65014512]
[1738160016418,3.26203447,3103.9,3103.8,0.5575]
[1738160017749,3.22176,3103.9,3103.8,0.65010075]
[1738160018325,3.26203447,3103.9,3103.8,0.65010075]
[1738160018852,3.26203447,3103.9,3103.8,0.5575]
[1738160019150,3.26203447,3103.9,3103.8,0.65010075]
[1738160021061,3.85971409,3104.0,3103.9,0.55]
[1738160021359,3.22172,3104.0,3103.9,0.55]
[1738160021512,3.22172,3104.0,3103.9,0.09254685]
[1738160021513,6.44343,3104.0,3103.9,0.09254685]
[1738160022569,3.22175,3103.9,3103.8,0.0075]
[1738160022731,3.26202427,3103.9,3103.8,0.0075]
[1738160022928,3.26202427,3103.9,3103.8,0.10010075]
[1738160023143,3.26202427,3103.9,3103.0,2.0]
[1738160023144,3.22243,3103.3,3103.0,2.0]
[1738160023328,3.22248,3103.2,3103.1,0.312]
[1738160023532,3.22248,3103.2,3103.1,0.8695]
[1738160025376,3.26263207,3103.4,3103.2,0.5575]
[1738160025581,3.22237,3103.3,3103.2,0.5575]
[1738160025884,3.22222,3103.5,3103.2,0.3195]
[1738160027351,3.222,3103.7,3103.3,0.55]
[1738160027683,3.222,3103.7,3103.6,0.0075]
[1738160027848,3.89886316,3103.7,3103.6,0.0075]
[1738160028496,3.89886316,3103.7,3103.6,0.65015435]
[1738160028852,5.37,3103.8,3103.7,0.55]
[1738160029212,5.37,3103.8,3103.7,4.6746541]
[1738160029353,0.65579582,3104.3,3104.0,0.5575]
[1738160029709,0.65579582,3104.3,3104.2,0.55]
[1738160030111,0.65579582,3104.3,3104.2,0.64242462]
[1738160030955,4.00807,3104.5,3104.2,0.64242462]
[1738160031192,3.221,3104.7,3104.2,0.64242462]
[1738160031390,3.221,3104.7,3104.2,1.46022462]
[1738160031554,3.22103,3104.6,3104.2,1.46022462]